fUSD/lending_fUSD_20251130
["ID","MTS","AMOUNT","RATE_DAILY","PERIOD"]
[395135125,1764466238977,-151.0,0.00014777,2]
[395135127,1764466238986,-151.0,0.00014777,2]
[395135129,1764466238996,-151.0,0.00014777,2]
[395135131,1764466239006,-151.0,0.00014777,2]
[395135133,1764466239015,-151.0,0.00014777,2]
[395135135,1764466239025,-151.0,0.00014777,2]
[395135137,1764466239036,-151.0,0.00014777,2]
[395135139,1764466239046,-151.0,0.00014777,2]
[395135142,1764466239055,-151.0,0.00014777,2]
[395135144,1764466239065,-151.0,0.00014777,2]
[395135146,1764466239074,-151.0,0.00014777,2]
[395135148,1764466239083,-151.0,0.00014777,2]
[395135150,1764466239093,-151.0,0.00014777,2]
[395135152,1764466239102,-600.0,0.00014786,2]
[395135154,1764466239112,-22745.53,0.00014815,2]
[395135156,1764466239121,-4776.34380529,0.00014844,2]
[395135158,1764466239131,-961.25002458,0.000149,2]
[395135160,1764466239140,-1313.20721126,0.00015,2]
[395135162,1764466239149,-269487.55322711,0.00015,4]
[395135164,1764466239159,-12029.21578807,0.00015,2]
[395135166,1764466239168,-23127.88768438,0.00015008,2]
[395135168,1764466239178,-600.0,0.0001506,2]
[395135170,1764466239187,-4776.34380529,0.00015101,2]
[395135172,1764466239199,-166.66,0.00015189,2]
[395135174,1764466239208,-961.25002458,0.00015234,2]
[395135176,1764466239218,-23127.88768438,0.00015278,2]
[395135178,1764466239227,-531.97,0.00015334,2]
[395135180,1764466239238,-4776.34380529,0.00015359,2]
[395135182,1764466239248,-961.25002458,0.00015568,2]
[395135184,1764466239258,-250.0,0.00015615,2]
[395135186,1764466239267,-195.0,0.00015615,2]
[395135188,1764466239278,-195.0,0.00015615,2]
[395135190,1764466239288,-4776.34380529,0.00015616,2]
[395135192,1764466239297,-255.0,0.0001563,2]
[395135194,1764466239306,-166.66,0.0001566,2]
[395135196,1764466239316,-165.3482,0.00015793,2]
[395135198,1764466239324,-4776.34380529,0.00015874,2]
[395135200,1764466239334,-420.0,0.00015876,2]
[395135202,1764466239343,-573.11879501,0.000159,2]
[395135204,1764466239352,-573.11879498,0.000159,2]
[395135206,1764466239361,-573.11879498,0.000159,2]
[395135208,1764466239370,-961.25002458,0.00015902,2]
[395135210,1764466239385,-1680.0,0.00015949,2]
[395135212,1764466239395,-500.0,0.00015973,2]
[395135214,1764466239405,-500.0,0.00015973,2]
[395135217,1764466239414,-500.0,0.00015973,2]
[395135219,1764466239424,-500.0,0.00015973,2]
[395135221,1764466239433,-500.0,0.00015973,2]
[395135223,1764466239442,-545.6682471,0.00015973,2]
[395135225,1764466239452,-500.0,0.00015973,2]
[395135227,1764466239461,-500.71814226,0.00015973,2]
[395135229,1764466239470,-503.30230408,0.00015973,2]
[395135231,1764466239480,-201.08259325,0.00015973,2]
[395135233,1764466239489,-500.0,0.00015973,2]
[395135235,1764466239499,-500.0,0.00015973,2]
[395135237,1764466239510,-500.21383285,0.00015973,2]
[395135239,1764466239519,-500.0,0.00015973,2]
[395135241,1764466239528,-500.0,0.00015973,2]
[395135243,1764466239538,-193.39138868,0.00015973,2]
[395135245,1764466239549,-151.0,0.00015997,2]
[395135247,1764466239559,-23662.03648702,0.00016,2]
[395135249,1764466239568,-80196.52801918,0.00016,2]
[395135251,1764466239577,-210821.03793759,0.00016,4]
[395135253,1764466239587,-1000.0,0.00016129,2]
[395135255,1764466239596,-30614.0776,0.00016129,2]
[395135257,1764466239606,-166.66,0.0001613,2]
[395135259,1764466239615,-4776.34380529,0.00016131,2]
[395135261,1764466239625,-28956.4779768,0.000162,5]
[395135263,1764466239635,-961.25002458,0.00016236,2]
[395135265,1764466239644,-200.0,0.0001634,2]
[395135267,1764466239654,-4776.34380529,0.00016389,2]
[395135268,1764466239663,-500.0,0.00016438,2]
[395135270,1764466239677,-500.0,0.00016438,2]
[395135272,1764466239693,-403.73911814,0.00016438,2]
[395135274,1764466239704,-500.0,0.00016438,2]
[395135276,1764466239713,-500.0,0.00016438,2]
[395135277,1764466239723,-500.0,0.00016438,2]
[395135279,1764466239733,-500.0,0.00016438,2]
[395135280,1764466239742,-452.21585205,0.00016438,2]
[395135281,1764466239751,-500.79206791,0.00016521,2]
[395135282,1764466239761,-184.79730938,0.00016521,2]
[395135283,1764466239770,-1000.0,0.00016521,2]
[395135284,1764466239779,-150.0,0.00016521,2]
[395135285,1764466239788,-150.0,0.00016521,2]
[395135286,1764466239798,-1000.0,0.00016521,2]
[395135287,1764466239807,-150.0,0.00016521,2]
[395135288,1764466239817,-150.0,0.00016521,2]
[395135289,1764466239826,-150.0,0.00016521,2]
[395135290,1764466239835,-1001.35128612,0.00016521,2]
[395135291,1764466239845,-1000.0,0.00016521,2]
[395135292,1764466239855,-500.77322072,0.00016521,2]
[395135293,1764466239864,-1000.0,0.00016521,2]
[395135294,1764466239875,-1000.0,0.00016521,2]
[395135295,1764466239884,-166.66,0.000166,2]
[395135296,1764466239894,-4776.34380529,0.00016646,2]
[395135297,1764466239904,-803.0,0.00016712,2]
[395135298,1764466239913,-150.0,0.00016712,2]
[395135299,1764466239922,-150.0,0.00016712,2]
[395135300,1764466239932,-500.55257,0.0001683,2]
[395135301,1764466239942,-319.0,0.00016848,2]
[395135302,1764466239952,-803.0,0.00016849,2]
[395135304,1764466239962,-150.0,0.00016849,2]
[395135306,1764466239971,-150.0,0.00016849,2]
[395135308,1764466239980,-200.0,0.00016864,2]
[395135310,1764466239990,-1053.86383915,0.00016897,2]
[395135312,1764466240000,-1053.86383912,0.00016898,2]
[395135313,1764466240011,-1053.86383912,0.00016898,2]
[395135314,1764466240020,-1053.86383912,0.00016899,2]
[395135315,1764466240029,-1053.86383912,0.00016899,2]
[395135316,1764466240039,-1053.86383912,0.000169,2]
[395135317,1764466240049,-436.54067424,0.000169,2]
[395135318,1764466240059,-881.55739674,0.000169,2]
[395135319,1764466240068,-436.54067422,0.00016902,2]
[395135320,1764466240078,-881.55739673,0.00016902,2]
[395135321,1764466240087,-4776.34380529,0.00016904,2]
[395135322,1764466240096,-436.54067422,0.00016904,2]
[395135323,1764466240106,-881.55739673,0.00016904,2]
[395135324,1764466240115,-500.55257,0.0001695,2]
[395135325,1764466240125,-500.0,0.00016973,2]
[395135326,1764466240134,-500.0,0.00016973,2]
[395135327,1764466240143,-500.0,0.00016973,2]
[395135328,1764466240152,-500.0,0.00016973,2]
[395135329,1764466240161,-500.0,0.00016973,2]
[395135330,1764466240170,-500.0,0.00016973,2]
[395135331,1764466240179,-500.0,0.00016973,2]
[395135332,1764466240188,-500.0,0.00016973,2]
[395135333,1764466240202,-500.0,0.00016973,2]
[395135334,1764466240211,-500.0,0.00016973,2]
[395135335,1764466240220,-165.98212225,0.00016973,2]
[395135336,1764466240229,-500.0,0.00016973,2]
[395135337,1764466240239,-500.0,0.00016973,2]
[395135338,1764466240249,-268.93907095,0.00016973,2]
[395135339,1764466240258,-500.0,0.00016973,2]
[395135340,1764466240269,-500.0,0.00016973,2]
[395135341,1764466240279,-500.0,0.00016973,2]
[395135342,1764466240289,-500.0,0.00016973,2]
[395135343,1764466240298,-500.0,0.00016973,2]
[395135344,1764466240313,-500.0,0.00016973,2]
[395135345,1764466240322,-500.0,0.00016973,2]
[395135346,1764466240331,-500.75968259,0.00016973,2]
[395135347,1764466240342,-500.0,0.00016973,2]
[395135348,1764466240352,-281.67573932,0.00016973,2]
[395135349,1764466240363,-500.0,0.00016973,2]
[395135350,1764466240372,-500.0,0.00016973,2]
[395135351,1764466240382,-500.0,0.00016973,2]
[395135352,1764466240393,-500.0,0.00016973,2]
[395135353,1764466240403,-500.0,0.00016973,2]
[395135354,1764466240413,-500.0,0.00016973,2]
[395135355,1764466240423,-500.0,0.00016973,2]
[395135356,1764466240433,-803.0,0.00016986,2]
[395135357,1764466240443,-150.0,0.00016986,2]
[395135358,1764466240453,-150.0,0.00016986,2]
[395135359,1764466240464,-500.0,0.0001699,2]
[395135360,1764466240474,-500.0,0.0001699,2]
[395135361,1764466240484,-500.0,0.0001699,2]
[395135362,1764466240493,-416.08725444,0.0001699,2]
[395135363,1764466240503,-32542.094974,0.00016991,2]
[395135364,1764466240512,-930404.2175233,0.00016991,2]
[395135365,1764466240522,-805.2959694,0.00016991,2]
[395135366,1764466240531,-151.0,0.00016997,2]
[395135367,1764466240540,-300.0,0.00016999,2]
[395135368,1764466240550,-300.0,0.00016999,2]
[395135369,1764466240560,-766570.60654112,0.00017,2]
[395135370,1764466240570,-250.0,0.00017,2]
[395135371,1764466240579,-200.0,0.00017,2]
[395135372,1764466240589,-239.38248207,0.00017,2]
[395135373,1764466240600,-2000.0,0.00017,2]
[395135374,1764466240610,-3562109.93264052,0.00017,2]
[395135377,1764466240788,-3185.20224705,0.00015548,2]
[395135378,1764466240800,-9240.19879053,0.00015548,2]
[395135379,1764466240811,-10702.4866468,0.00015548,2]
[395135380,1764466240821,-500.0,0.00015973,2]
[395135381,1764466240830,-1000.0,0.00016521,2]
[395135382,1764466240839,-1883232.7579729,0.00017,2]
[395135383,1764466240851,-993.21578274,0.00017,2]
[395135384,1764466240866,-1674.38258997,0.00017,2]
[395135385,1764466240877,-1372.94995013,0.00017,2]
[395135386,1764466241325,-324.4526,0.00017,2]
[395135387,1764466241366,-293.23499967,0.00017,2]
[395135389,1764466243096,-573.11879498,0.000159,2]
[395135391,1764466243106,-961.25002458,0.0001657,2]
[395135392,1764466243115,-132193.79759182,0.00017,2]
[395135393,1764466243356,-1409.77134126,0.00017,2]
[395135394,1764466243455,-2136.12802755,0.00017,2]
[395135395,1764466243467,-384.996,0.00017,2]
[395135396,1764466243478,-22817.83301384,0.00017,2]
[395135397,1764466243489,-1494.42132137,0.00017,2]
[395135401,1764466246338,-440.807,0.00015819,2]
[395135515,1764466621149,161.89,0.00011434,2]
[395135516,1764466621364,161.89,0.0001334,2]
[395135519,1764466651045,156.62,0.00019178,30]
[395135528,1764466846540,3171.0,0.0001369,2]
[395135535,1764467001409,1045.29,0.00013732,2]
[395135536,1764467129063,2000.0,0.00013562,2]
[395135538,1764467182844,497.15,6.781e-05,2]
[395135539,1764467183864,497.15,7.138e-05,2]
[395135540,1764467183927,497.15,7.495e-05,2]
[395135541,1764467183997,497.15,7.852e-05,2]
[395135542,1764467184045,497.15,8.208e-05,2]
[395135543,1764467184094,497.15,8.565e-05,2]
[395135544,1764467184628,477.04,8.922e-05,2]
[395135545,1764467184653,20.11,8.922e-05,2]
[395135546,1764467184757,497.15,9.279e-05,2]
[395135547,1764467184828,497.15,9.636e-05,2]
[395135548,1764467184943,497.15,9.993e-05,2]
[395135549,1764467185138,497.15,0.0001035,2]
[395135550,1764467185337,497.15,0.00010707,2]
[395135551,1764467185566,497.15,0.00011063,2]
[395135552,1764467185773,497.15,0.0001142,2]
[395135553,1764467185981,497.15,0.00011777,2]
[395135554,1764467186192,497.15,0.00012134,2]
[395135555,1764467186399,497.15,0.00012491,2]
[395135556,1764467186609,497.15,0.00012848,2]
[395135557,1764467186835,497.15,0.00013205,2]
[395135558,1764467187018,497.15,0.00013562,2]
[395135568,1764467301320,519.19,0.00013565,2]
[395135606,1764467432734,-201.0,0.00013865,2]
[395135607,1764467432744,-195.0,0.00013865,2]
[395135608,1764467432753,-195.0,0.00013865,2]
[395135609,1764467432762,-152.753,0.00013865,2]
[395135610,1764467432778,-42.247,0.00013865,2]
[395135611,1764467432790,-150.0,0.00013865,2]
[395135612,1764467432800,-269.86365713,0.00013872,2]
[395135613,1764467432810,-53.91924724,0.00013872,2]
[395135614,1764467432820,-1852.42,0.00013897,2]
[395135615,1764467432829,-1200.0,0.00014246,2]
[395135616,1764467432838,-392.34913669,0.00014247,2]
[395135650,1764467438207,-1512.8526791,0.00014247,2]
[395135651,1764467438220,-1413.79818421,0.00014247,2]
[395135652,1764467438230,-355.43947758,0.0001429,2]
[395135653,1764467438242,-61.09834349,0.0001429,2]
[395135654,1764467438256,-191.39201617,0.00014298,2]
[395135655,1764467438267,-496.07316759,0.00014372,2]
[395135656,1764467438279,-185.02151291,0.00014372,2]
[395135658,1764467438289,-294.07782828,0.00014372,2]
[395135659,1764467438299,-254.7100816,0.00014372,2]
[395135660,1764467438309,-368.55817706,0.00014372,2]
[395135661,1764467438322,-131.44182294,0.00014372,2]
[395135662,1764467438331,-500.0,0.00014372,2]
[395135663,1764467438342,-148.55817707,0.00014372,2]
[395135664,1764467438355,-292.696336,0.00014372,2]
[395135665,1764467438367,-58.74548693,0.00014372,2]
[395135666,1764467438376,-500.0,0.00014372,2]
[395135667,1764467438386,-500.0,0.00014372,2]
[395135668,1764467438396,-500.0,0.00014372,2]
[395135669,1764467438406,-500.0,0.00014372,2]
[395135670,1764467438416,-500.0,0.00014372,2]
[395135671,1764467438425,-240.72154535,0.00014372,2]
[395135672,1764467438436,-200.0,0.00014372,2]
[395135673,1764467438445,-500.0,0.00014372,2]
[395135674,1764467438455,-760000.0,0.00014373,2]
[395135675,1764467438465,-300.0,0.0001439,2]
[395135676,1764467438475,-15868.45320661,0.00014391,2]
[395135677,1764467438485,-1000.0,0.00014391,2]
[395135678,1764467438495,-2500.0,0.00014391,2]
[395135679,1764467438505,-150.0,0.00014398,2]
[395135680,1764467438515,-235.2993,0.00014399,2]
[395135681,1764467438525,-1512.8081,0.00014399,2]
[395135682,1764467438534,-54693.5963,0.00014399,2]
[395135683,1764467438544,-3508.117,0.000144,2]
[395135684,1764467438553,-182.645,0.000144,2]
[395135685,1764467438562,-18753.69430904,0.000144,2]
[395135686,1764467438572,-500.0,0.00014472,2]
[395135688,1764467438581,-500.0,0.00014472,2]
[395135690,1764467438591,-299.99,0.00014473,2]
[395135691,1764467438601,-9999.99,0.00014473,2]
[395135692,1764467438611,-9999.99,0.00014473,2]
[395135693,1764467438621,-2954.41,0.00014473,2]
[395135694,1764467438631,-1428.12,0.00014473,2]
[395135695,1764467438641,-150.99,0.00014473,2]
[395135696,1764467438651,-999.99,0.00014473,2]
[395135698,1764467438660,-150.99,0.00014473,2]
[395135700,1764467438669,-803.0,0.0001449,2]
[395135701,1764467438679,-150.0,0.0001449,2]
[395135702,1764467438688,-500.0,0.0001449,2]
[395135703,1764467438698,-150.0,0.0001449,2]
[395135704,1764467438707,-151.98350785,0.0001449,2]
[395135705,1764467438718,-500.0,0.0001449,2]
[395135706,1764467438728,-151.0,0.00014491,2]
[395135707,1764467438737,-151.0,0.00014491,2]
[395135708,1764467438748,-151.0,0.00014491,2]
[395135709,1764467438757,-151.0,0.00014491,2]
[395135710,1764467438768,-151.0,0.00014491,2]
[395135711,1764467438778,-151.0,0.00014491,2]
[395135712,1764467438788,-151.0,0.00014491,2]
[395135713,1764467438797,-151.0,0.00014491,2]
[395135714,1764467438806,-151.0,0.00014491,2]
[395135715,1764467438815,-190.7567282,0.00014491,2]
[395135716,1764467438825,-194.25158579,0.00014491,2]
[395135717,1764467438834,-151.0,0.00014491,2]
[395135718,1764467438843,-151.0,0.00014491,2]
[395135719,1764467438853,-151.0,0.00014491,2]
[395135720,1764467438862,-151.0,0.00014491,2]
[395135721,1764467438872,-151.0,0.00014491,2]
[395135722,1764467438881,-151.0,0.00014491,2]
[395135723,1764467438890,-151.0,0.00014491,2]
[395135724,1764467438899,-151.0,0.00014491,2]
[395135725,1764467438908,-151.0,0.00014491,2]
[395135726,1764467438918,-151.0,0.00014491,2]
[395135727,1764467438927,-151.0,0.00014491,2]
[395135728,1764467438938,-151.0,0.00014491,2]
[395135729,1764467438947,-151.0,0.00014491,2]
[395135730,1764467438957,-587.6017942,0.00014492,2]
[395135731,1764467438966,-6611.8157814,0.00014492,2]
[395135732,1764467438975,-160.0,0.00014492,2]
[395135733,1764467438985,-151.0,0.00014492,2]
[395135734,1764467438997,-1000.0,0.00014492,2]
[395135735,1764467439007,-151.0,0.00014492,2]
[395135736,1764467439015,-1000.0,0.00014492,2]
[395135737,1764467439025,-257.91778498,0.00014492,2]
[395135738,1764467439035,-1000.0,0.00014492,2]
[395135739,1764467439043,-1000.0,0.00014492,2]
[395135740,1764467439053,-684.39182428,0.00014492,2]
[395135741,1764467439062,-1000.0,0.00014492,2]
[395135742,1764467439072,-1000.0,0.00014492,2]
[395135743,1764467439085,-1000.0,0.00014492,2]
[395135744,1764467439095,-1000.0,0.00014492,2]
[395135745,1764467439103,-1000.0,0.00014492,2]
[395135746,1764467439113,-1000.0,0.00014492,2]
[395135747,1764467439125,-533.88981491,0.00014492,2]
[395135748,1764467439135,-153.33020612,0.00014492,2]
[395135749,1764467439144,-1000.0,0.00014492,2]
[395135750,1764467439154,-1000.0,0.00014492,2]
[395135751,1764467439164,-620.0,0.00014492,2]
[395135752,1764467439174,-1000.0,0.00014492,2]
[395135753,1764467439184,-1000.0,0.00014492,2]
[395135754,1764467439194,-1000.0,0.00014492,2]
[395135755,1764467439203,-1000.0,0.00014492,2]
[395135756,1764467439212,-1000.0,0.00014492,2]
[395135757,1764467439223,-1000.0,0.00014492,2]
[395135758,1764467439232,-1000.0,0.00014492,2]
[395135759,1764467439242,-1000.0,0.00014492,2]
[395135760,1764467439253,-1000.0,0.00014492,2]
[395135761,1764467439262,-1000.0,0.00014492,2]
[395135762,1764467439271,-1000.0,0.00014492,2]
[395135763,1764467439281,-1000.0,0.00014492,2]
[395135764,1764467439291,-1000.0,0.00014492,2]
[395135765,1764467439300,-1000.0,0.00014492,2]
[395135766,1764467439309,-500.0,0.00014492,2]
[395135767,1764467439319,-500.0,0.00014492,2]
[395135768,1764467439328,-8000.0,0.00014492,2]
[395135769,1764467439338,-500.0,0.00014492,2]
[395135770,1764467439347,-500.0,0.00014492,2]
[395135771,1764467439356,-8000.0,0.00014492,2]
[395135772,1764467439365,-500.0,0.00014492,2]
[395135773,1764467439374,-500.0,0.00014492,2]
[395135774,1764467439384,-8000.0,0.00014492,2]
[395135775,1764467439394,-500.0,0.00014492,2]
[395135776,1764467439403,-8000.0,0.00014492,2]
[395135777,1764467439412,-500.0,0.00014492,2]
[395135778,1764467439422,-8000.0,0.00014492,2]
[395135779,1764467439431,-500.0,0.00014492,2]
[395135780,1764467439442,-8000.0,0.00014492,2]
[395135781,1764467439451,-322.6107,0.00014492,2]
[395135782,1764467439462,-8000.0,0.00014492,2]
[395135783,1764467439471,-500.0,0.00014492,2]
[395135784,1764467439480,-250.0,0.00014492,2]
[395135785,1764467439490,-250.0,0.00014492,2]
[395135786,1764467439499,-8000.0,0.00014492,2]
[395135787,1764467439509,-500.0,0.00014492,2]
[395135788,1764467439519,-250.0,0.00014492,2]
[395135789,1764467439528,-250.0,0.00014492,2]
[395135790,1764467439538,-8000.0,0.00014492,2]
[395135791,1764467439547,-500.0,0.00014492,2]
[395135792,1764467439556,-250.0,0.00014492,2]
[395135793,1764467439566,-250.0,0.00014492,2]
[395135794,1764467439575,-8000.0,0.00014492,2]
[395135795,1764467439585,-500.0,0.00014492,2]
[395135796,1764467439594,-578.20924308,0.00014492,2]
[395135797,1764467439604,-250.0,0.00014492,2]
[395135798,1764467439613,-250.0,0.00014492,2]
[395135799,1764467439622,-8000.0,0.00014492,2]
[395135800,1764467439632,-500.0,0.00014492,2]
[395135801,1764467439641,-250.0,0.00014492,2]
[395135802,1764467439650,-250.0,0.00014492,2]
[395135803,1764467439659,-194.99852451,0.00014492,2]
[395135804,1764467439668,-8000.0,0.00014492,2]
[395135805,1764467439679,-500.0,0.00014492,2]
[395135806,1764467439689,-250.0,0.00014492,2]
[395135807,1764467439698,-250.0,0.00014492,2]
[395135808,1764467439709,-8000.0,0.00014492,2]
[395135809,1764467439720,-500.0,0.00014492,2]
[395135810,1764467439729,-250.0,0.00014492,2]
[395135811,1764467439740,-250.0,0.00014492,2]
[395135812,1764467439750,-250.0,0.00014492,2]
[395135813,1764467439761,-500.0,0.00014492,2]
[395135814,1764467439771,-250.0,0.00014492,2]
[395135815,1764467439781,-250.0,0.00014492,2]
[395135816,1764467439791,-250.0,0.00014492,2]
[395135817,1764467439801,-500.0,0.00014492,2]
[395135818,1764467439811,-250.0,0.00014492,2]
[395135819,1764467439820,-250.0,0.00014492,2]
[395135820,1764467439831,-250.0,0.00014492,2]
[395135821,1764467439840,-500.0,0.00014492,2]
[395135822,1764467439852,-250.0,0.00014492,2]
[395135823,1764467439862,-250.0,0.00014492,2]
[395135824,1764467439872,-207.60760368,0.00014492,2]
[395135825,1764467439882,-500.0,0.00014492,2]
[395135826,1764467439892,-300.0,0.00014492,2]
[395135827,1764467439902,-250.0,0.00014492,2]
[395135828,1764467439911,-250.0,0.00014492,2]
[395135829,1764467439921,-500.0,0.00014492,2]
[395135830,1764467439930,-250.0,0.00014492,2]
[395135831,1764467439939,-250.0,0.00014492,2]
[395135832,1764467439948,-500.0,0.00014492,2]
[395135833,1764467439958,-250.0,0.00014492,2]
[395135834,1764467439967,-250.0,0.00014492,2]
[395135835,1764467439976,-500.0,0.00014492,2]
[395135836,1764467439985,-250.0,0.00014492,2]
[395135837,1764467439995,-500.0,0.00014492,2]
[395135838,1764467440008,-250.0,0.00014492,2]
[395135839,1764467440019,-500.0,0.00014492,2]
[395135840,1764467440030,-250.0,0.00014492,2]
[395135841,1764467440039,-500.0,0.00014492,2]
[395135842,1764467440048,-250.0,0.00014492,2]
[395135843,1764467440057,-250.0,0.00014492,2]
[395135844,1764467440066,-242.76972511,0.00014492,2]
[395135845,1764467440075,-250.0,0.00014492,2]
[395135846,1764467440088,-250.0,0.00014492,2]
[395135847,1764467440098,-500.0,0.00014492,2]
[395135848,1764467440106,-250.0,0.00014492,2]
[395135849,1764467440115,-500.0,0.00014492,2]
[395135850,1764467440125,-250.0,0.00014492,2]
[395135851,1764467440134,-500.0,0.00014492,2]
[395135852,1764467440143,-250.0,0.00014492,2]
[395135853,1764467440152,-500.0,0.00014492,2]
[395135854,1764467440161,-250.0,0.00014492,2]
[395135855,1764467440171,-500.0,0.00014492,2]
[395135856,1764467440179,-1000.0,0.00014492,2]
[395135857,1764467440189,-151.96835927,0.00014492,2]
[395135858,1764467440199,-250.0,0.00014492,2]
[395135859,1764467440208,-500.0,0.00014492,2]
[395135860,1764467440218,-250.0,0.00014492,2]
[395135861,1764467440227,-151.0,0.00014492,2]
[395135862,1764467440237,-500.0,0.00014492,2]
[395135863,1764467440247,-250.0,0.00014492,2]
[395135864,1764467440257,-151.0,0.00014492,2]
[395135865,1764467440267,-500.0,0.00014492,2]
[395135866,1764467440277,-250.0,0.00014492,2]
[395135867,1764467440286,-500.0,0.00014492,2]
[395135868,1764467440296,-151.0,0.00014492,2]
[395135869,1764467440305,-151.0,0.00014492,2]
[395135870,1764467440315,-250.0,0.00014492,2]
[395135871,1764467440326,-500.0,0.00014492,2]
[395135872,1764467440335,-151.0,0.00014492,2]
[395135873,1764467440346,-256.74036744,0.00014492,2]
[395135874,1764467440358,-151.0,0.00014492,2]
[395135875,1764467440368,-500.0,0.00014492,2]
[395135876,1764467440378,-151.0,0.00014492,2]
[395135877,1764467440387,-197.60270261,0.00014492,2]
[395135878,1764467440396,-500.0,0.00014492,2]
[395135879,1764467440405,-151.0,0.00014492,2]
[395135880,1764467440414,-514.58566631,0.00014492,2]
[395135881,1764467440424,-151.0,0.00014492,2]
[395135882,1764467440433,-915.94653219,0.00014492,2]
[395135883,1764467440443,-151.0,0.00014492,2]
[395135884,1764467440452,-151.0,0.00014492,2]
[395135885,1764467440461,-151.0,0.00014492,2]
[395135886,1764467440471,-151.0,0.00014492,2]
[395135887,1764467440482,-151.0,0.00014492,2]
[395135888,1764467440491,-500.0,0.00014492,2]
[395135889,1764467440500,-500.0,0.00014492,2]
[395135890,1764467440510,-500.0,0.00014492,2]
[395135891,1764467440519,-500.0,0.00014492,2]
[395135892,1764467440528,-500.0,0.00014492,2]
[395135893,1764467440538,-500.0,0.00014492,2]
[395135894,1764467440547,-500.0,0.00014492,2]
[395135895,1764467440557,-500.0,0.00014492,2]
[395135896,1764467440566,-500.0,0.00014492,2]
[395135897,1764467440575,-500.0,0.00014492,2]
[395135898,1764467440584,-500.0,0.00014492,2]
[395135899,1764467440594,-500.0,0.00014492,2]
[395135900,1764467440603,-500.0,0.00014492,2]
[395135901,1764467440612,-219.97289193,0.00014499,2]
[395135902,1764467440622,-500.0,0.00014499,2]
[395135903,1764467440631,-500.0,0.00014499,2]
[395135905,1764467440641,-500.0,0.00014499,2]
[395135906,1764467440650,-500.0,0.00014499,2]
[395135907,1764467440659,-500.0,0.00014499,2]
[395135908,1764467440668,-500.0,0.00014499,2]
[395135909,1764467440677,-500.0,0.00014499,2]
[395135910,1764467440686,-500.0,0.00014499,2]
[395135911,1764467440696,-500.0,0.00014499,2]
[395135914,1764467440706,-500.0,0.00014499,2]
[395135916,1764467440715,-521.77695588,0.00014499,2]
[395135917,1764467440724,-183.05840034,0.00014499,2]
[395135918,1764467440735,-500.0,0.00014499,2]
[395135919,1764467440744,-500.0,0.00014499,2]
[395135920,1764467440754,-500.0,0.00014499,2]
[395135921,1764467440763,-500.0,0.00014499,2]
[395135922,1764467440772,-500.0,0.00014499,2]
[395135923,1764467440781,-512.38673853,0.00014499,2]
[395135924,1764467440791,-510.07916645,0.00014499,2]
[395135925,1764467440801,-512.90563522,0.00014499,2]
[395135926,1764467440811,-747.54,0.00014504,2]
[395135927,1764467440821,-151.0,0.00014521,2]
[395135928,1764467440830,-33399.3792,0.00014586,2]
[395135929,1764467440839,-2856.7984,0.00014586,2]
[395135930,1764467440849,-1000.0,0.00014586,2]
[395135931,1764467440859,-413.0,0.000146,2]